{"text_format":"3","workbook":"xlsx","n_sheets":2,"sheets":["INIZIO","STRUMENTO DI BUDGET"],"not_rendered":{"defined_names":2},"read":"whole","date_system":"1900"}

{"sheet":"INIZIO","index":0,"n_rows":7,"n_cols":2,"rows_kept":7}
[null,"INFORMAZIONI SU QUESTO MODELLO"]
[null,"È possibile tenere traccia di un investimento iniziale, dei vantaggi e dei costi di un sito Web tramite questo strumento di definizione del budget del siti Web."]
[null,"Compilare il nome società e la data."]
[null,"Immettere dettagli nelle tabelle per calcolare automaticamente i totali e i metriche di valutazione."]
[null,"Nota:  "]
[null,"Altre istruzioni sono state fornite nella colonna A del foglio di lavoro dello STRUMENTO DI BUDGET. Questo testo è stato nascosto intenzionalmente. Per rimuovere il testo, selezionare la colonna A, quindi scegliere ELIMINA. Per visualizzare il testo, selezionare la colonna A, quindi modificare il colore del carattere."]
[null,"Per ulteriori informazioni sulle tabelle del foglio di lavoro, premere MAIUSC, quindi F10 in una tabella, selezionare l'opzione TABELLA, quindi selezionare TESTO ALTERNATIVO."]

{"sheet":"STRUMENTO DI BUDGET","index":1,"n_rows":43,"n_cols":6,"rows_kept":43,"merged":[[14,1,14,5],[22,1,22,5],[30,1,30,5],[38,1,38,5]]}
["Creare Definizione del budget del sito Web nel foglio di lavoro. Istruzioni utili per l'uso di questo foglio di lavoro si trovano nelle celle di questa colonna. Freccia verso il basso per iniziare."]
["Immettere il nome società nella cella a destra.","Nome società"]
["Il titolo di questo foglio di lavoro è nella cella a destra.","Strumento di definizione del budget del sito Web"]
["Immettere la data nella cella a destra.","Data"]
["I suggerimenti si trovano nella cella a destra.","Le celle grigie contengono calcoli che non devono essere modificati."]
["Immettere i dettagli nella tabella Tasso a partire dalla cella a destra. L'istruzione successiva si trova nella cella A10.","Dati società","Tasso"]
[null,"Tasso di rendimento obbligatorio",{"v":0.1,"d":"10%"}]
[null,"Aliquota d'imposta",{"v":0.3,"d":"30%"}]
[]
["Immettere i dettagli nella tabella Investimento iniziale a partire dalla cella a destra. L'istruzione successiva si trova nella cella A16.","Investimento iniziale nel sito Web","ANNO","1","2","3"]
[null,"Componenti hardware (ad esempio server)",{"v":25000,"d":"€ 25,000.00"}]
[null,"Programmi software (ad esempio, il software del catalogo e-commerce)",{"v":15000,"d":"€ 15,000.00"}]
[null,"Sviluppo (ad esempio, la progettazione e lo sviluppo del sito da terze parti)",{"v":150000,"d":"€ 150,000.00"}]
[null,"Totale degli investimenti iniziali",{"$f":"SUBTOTAL(109,InvestimentoIniziale[ANNO])","v":{"v":190000,"d":"€ 190,000.00"}}]
[]
["Immettere i dettagli nella tabella Vantaggi a partire dalla cella a destra. L'istruzione successiva si trova nella cella A24.","Vantaggi dal sito Web","ANNO","1","2","3"]
[null,"Vendite dirette",null,{"v":15000,"d":"€ 15,000.00"},{"v":50000,"d":"€ 50,000.00"},{"v":75000,"d":"€ 75,000.00"}]
[null,"Aumento delle vendite derivante dalla maggiore efficacia dell'attività promozionale/dei venditori",null,{"v":25000,"d":"€ 25,000.00"},{"v":25000,"d":"€ 25,000.00"},{"v":25000,"d":"€ 25,000.00"}]
[null,"Aumento delle vendite derivante dalla maggiore partecipazione dei partner",null,{"v":25000,"d":"€ 25,000.00"},{"v":25000,"d":"€ 25,000.00"},{"v":25000,"d":"€ 25,000.00"}]
[null,"Riduzione dei costi di viaggi di lavoro",null,{"v":25000,"d":"€ 25,000.00"},{"v":25000,"d":"€ 25,000.00"},{"v":25000,"d":"€ 25,000.00"}]
[null,"Riduzione dei costi del servizio clienti",null,{"v":50000,"d":"€ 50,000.00"},{"v":50000,"d":"€ 50,000.00"},{"v":50000,"d":"€ 50,000.00"}]
[null,"Totale vantaggi",null,{"$f":"SUBTOTAL(109,Vantaggi[1])","v":{"v":140000,"d":"€ 140,000.00"}},{"$f":"SUBTOTAL(109,Vantaggi[2])","v":{"v":175000,"d":"€ 175,000.00"}},{"$f":"SUBTOTAL(109,Vantaggi[3])","v":{"v":200000,"d":"€ 200,000.00"}}]
[]
["Immettere i dettagli nella tabella Costi a partire dalla cella a destra. I valori vengono calcolati automaticamente nelle celle contenenti formule. L'istruzione successiva si trova nella cella A32.","Costi (escluso l'investimento di capitale iniziale)","ANNO","1","2","3"]
[null,"Costo del venduto",null,{"v":7500,"d":"€ 7,500.00"},{"v":25000,"d":"€ 25,000.00"},{"v":37500,"d":"€ 37,500.00"}]
[null,"Manutenzione",null,{"v":15000,"d":"€ 15,000.00"},{"v":15000,"d":"€ 15,000.00"},{"v":15000,"d":"€ 15,000.00"}]
[null,"Gestione dei progetti, supporto tecnico",null,{"v":35000,"d":"€ 35,000.00"},{"v":35000,"d":"€ 35,000.00"},{"v":35000,"d":"€ 35,000.00"}]
[null,"Pubblicità online, registrazione nei motori di ricerca",null,{"v":10000,"d":"€ 10,000.00"},{"v":10000,"d":"€ 10,000.00"},{"v":10000,"d":"€ 10,000.00"}]
[null,"Ammortamento delle spese in conto capitale (il calcolo si basa su un periodo di tre anni)",null,{"$f":"InvestimentoIniziale[[#Totals],[ANNO]]/3","v":{"v":63333.333333333336,"d":"€ 63,333.33"}},{"$f":"InvestimentoIniziale[[#Totals],[ANNO]]/3","v":{"v":63333.333333333336,"d":"€ 63,333.33"}},{"$f":"InvestimentoIniziale[[#Totals],[ANNO]]/3","v":{"v":63333.333333333336,"d":"€ 63,333.33"}}]
[null,"Totale costi",null,{"$f":"SUBTOTAL(109,Costi[1])","v":{"v":130833.33333333334,"d":"€ 130,833.33"}},{"$f":"SUBTOTAL(109,Costi[2])","v":{"v":148333.33333333334,"d":"€ 148,333.33"}},{"$f":"SUBTOTAL(109,Costi[3])","v":{"v":160833.33333333334,"d":"€ 160,833.33"}}]
[]
["I valori vengono calcolati automaticamente nella tabella Totali a partire dalla cella a destra. L'istruzione successiva si trova nella cella A40.","Totali","ANNO","1","2","3"]
[null,"Prestazioni di rete (costi)",null,{"$f":"Vantaggi[[#Totals],[1]]-Costi[[#Totals],[1]]","v":{"v":9166.666666666657,"d":"€ 9,166.67"}},{"$f":"Vantaggi[[#Totals],[2]]-Costi[[#Totals],[2]]","v":{"v":26666.666666666657,"d":"€ 26,666.67"}},{"$f":"Vantaggi[[#Totals],[3]]-Costi[[#Totals],[3]]","v":{"v":39166.66666666666,"d":"€ 39,166.67"}}]
[null,"Imposte",null,{"$f":"D33*AliquotaIVA","v":{"v":2749.999999999997,"d":"€ 2,750.00"}},{"$f":"E33*AliquotaIVA","v":{"v":7999.999999999996,"d":"€ 8,000.00"}},{"$f":"F33*AliquotaIVA","v":{"v":11749.999999999996,"d":"€ 11,750.00"}}]
[null,"Valore al netto delle imposte",null,{"$f":"D33-D34","v":{"v":6416.666666666661,"d":"€ 6,416.67"}},{"v":18666.66666666666,"d":"€ 18,666.67"},{"v":27416.66666666666,"d":"€ 27,416.67"}]
[null,"Ammortamento aggiunto di nuovo",null,{"$f":"D29","v":{"v":63333.333333333336,"d":"€ 63,333.33"}},{"$f":"E29","v":{"v":63333.333333333336,"d":"€ 63,333.33"}},{"$f":"F29","v":{"v":63333.333333333336,"d":"€ 63,333.33"}}]
[null,"Flusso di cassa",{"$f":"-InvestimentoIniziale[[#Totals],[ANNO]]","v":{"v":-190000,"d":"-€ 190,000.00"}},{"$f":"D35+D36","v":{"v":69750,"d":"€ 69,750.00"}},{"v":82000,"d":"€ 82,000.00"},{"v":90750,"d":"€ 90,750.00"}]
[null,"Flusso di cassa cumulativo",{"$f":"C37","v":{"v":-190000,"d":"-€ 190,000.00"}},{"$f":"C38+D37","v":{"v":-120250,"d":"-€ 120,250.00"}},{"v":-38250,"d":"-€ 38,250.00"},{"v":52500,"d":"€ 52,500.00"}]
[]
["I parametri di valutazione vengono calcolati automaticamente nella tabella Metriche a partire dalla cella a destra.","Metriche di valutazione","Valori"]
[null,"Valore attuale netto (VAN)",{"$f":"C37+(NPV(ROR,D37:F37))","v":{"v":9359.504132231377,"d":"€ 9,359.50"}}]
[null,"Tasso di rendimento interno (TIR)",{"$f":"IRR(C37:F37)","v":{"v":0.12655165144706393,"d":"12.66%"}}]
[null,"Periodo di rimborso (in anni)",{"$f":"IF(F38<=0,\"Supera 3 anni\",IF(E38<=0,(F37-F38)/F37+2,IF(D38<=0,(E37-E38)/E37+1,IF(C38<=0,(D37-D38)/D37,\"NA\"))))","v":{"v":2.4214876033057853,"d":"2.42"}}]